bitfinex/quotes_ETHUSD_20250328
["timestamp","ask_amount","ask_price","bid_price","bid_amount"]
[1743157649871,5.2173,1916.7,1916.5,0.8115]
[1743157652368,6.00185,1916.8,1916.5,0.8115]
[1743157652667,5.21705,1916.8,1916.5,0.8115]
[1743157652865,5.21705,1916.8,1916.5,6.02931]
[1743157653070,5.21705,1916.8,1916.5,7.7999201]
[1743157654079,13.78256692,1916.9,1916.5,7.7997501]
[1743157654276,5.21705,1916.8,1916.5,7.7997501]
[1743157654578,13.78258692,1916.9,1916.5,7.7997501]
[1743157655741,5.21704,1916.8,1916.5,7.7997501]
[1743157656470,5.21704,1916.8,1916.7,1.06040014]
[1743157656669,5.21704,1916.8,1916.5,6.02914]
[1743157656870,5.21686,1916.9,1916.5,7.646161]
[1743157657046,10.43382,1916.9,1916.5,7.646161]
[1743157657242,5.21704,1916.8,1916.5,6.02914]
[1743157661751,2.58344692,1916.6,1916.3,7.03440317]
[1743157661956,7.80129692,1916.5,1916.4,4.922]
[1743157662152,7.80129692,1916.5,1915.9,33.57402]
[1743157662153,0.7673,1916.4,1915.9,33.57402]
[1743157662353,7.80223692,1916.2,1916.0,4.922]
[1743157662556,7.80248692,1916.1,1915.9,32.518]
[1743157662759,2.58344692,1916.0,1915.9,32.518]
[1743157663055,8.57378692,1916.1,1915.9,32.518]
[1743157664155,5.99034,1916.1,1915.9,32.518]
[1743157664354,0.7713,1916.1,1915.9,32.518]
[1743157664859,5.99034,1916.1,1915.9,32.518]
[1743157665301,7.80213692,1916.2,1916.0,1.03409339]
[1743157665738,13.02096692,1916.2,1916.0,1.03409339]
[1743157666028,5.21893,1916.1,1916.0,1.03409339]
[1743157666228,7.80213692,1916.2,1916.0,1.03409339]
[1743157666827,13.02097692,1916.2,1916.0,1.03409339]
[1743157667029,7.80213692,1916.2,1916.0,1.03409339]
[1743157667500,5.21893,1916.1,1916.0,1.03409339]
[1743157668731,5.21893,1916.1,1915.9,4.922]
[1743157670724,13.02099692,1916.2,1915.9,4.922]
[1743157670928,7.80213692,1916.2,1915.9,4.922]
[1743157671127,7.80213692,1916.2,1915.9,10.14143]
[1743157671649,7.80213692,1916.2,1915.9,4.922]
[1743157671831,13.02097692,1916.2,1915.9,4.922]
[1743157673747,7.80213692,1916.2,1915.9,4.922]
[1743157674045,13.02098692,1916.2,1915.9,4.922]
[1743157675142,5.21895,1916.1,1915.9,4.922]
[1743157678655,13.02103692,1916.2,1915.9,4.922]
[1743157678951,5.21897,1916.1,1915.9,4.922]
[1743157680476,3.40884692,1916.0,1915.6,1.06085792]
[1743157680679,5.22067,1915.5,1915.4,4.923]
[1743157680831,7.80389692,1915.6,1915.4,4.923]
[1743157681177,13.02435692,1915.6,1915.4,4.923]
[1743157681931,7.80400692,1915.5,1915.4,4.923]
[1743157682428,5.22056,1915.5,1915.4,4.923]
[1743157683045,7.80389692,1915.6,1915.4,4.923]
[1743157683246,0.7861,1915.7,1915.4,4.923]
[1743157683439,5.21976,1915.8,1915.4,14.19165]
[1743157683655,5.22005,1915.7,1915.4,8.971]
[1743157685375,10.44025,1915.7,1915.4,5.7189]
[1743157685534,5.22005,1915.7,1915.4,5.7189]
[1743157686679,5.22005,1915.7,1915.4,6.77044186]
[1743157688388,5.22005,1915.7,1915.4,12.77044186]
[1743157688791,5.22005,1915.7,1915.4,17.99127186]
[1743157688989,8.56772692,1915.8,1915.4,23.03527527]
[1743157689159,13.78765692,1915.8,1915.4,23.03527527]
[1743157689687,5.22003,1915.7,1915.4,23.03527527]
[1743157689898,7.80400692,1915.5,1915.4,10.923]
[1743157692191,7.80400692,1915.5,1915.4,6.0]
[1743157695072,8.55843692,1915.6,1915.4,6.0]
[1743157695298,5.22039,1915.6,1915.4,6.0]
[1743157695496,5.21978,1915.8,1915.5,6.62498]
[1743157695824,5.21961,1915.9,1915.6,5.22026]
[1743157696116,8.57203692,1916.2,1915.8,0.8046]
[1743157696278,7.80252692,1916.1,1915.8,0.8046]
[1743157696480,7.80282692,1916.0,1915.8,0.8046]
[1743157696742,7.80282692,1916.0,1915.7,4.924]
[1743157696903,13.02219692,1916.0,1915.7,4.924]
[1743157697113,7.80281692,1916.0,1915.7,4.924]
[1743157697714,7.80281692,1916.0,1915.7,10.14401]
[1743157698072,7.80281692,1916.0,1915.7,4.924]
[1743157698415,13.02220692,1916.0,1915.7,4.924]
[1743157698576,7.80281692,1916.0,1915.7,4.924]
[1743157699231,13.02218692,1916.0,1915.7,4.924]
[1743157699399,7.80281692,1916.0,1915.7,4.924]
[1743157701081,5.21937,1916.0,1915.7,4.924]
[1743157701613,10.43876,1916.0,1915.7,4.924]
[1743157702408,5.21937,1916.0,1915.7,4.924]
[1743157702572,10.43877,1916.0,1915.7,4.924]
[1743157703005,5.21937,1916.0,1915.7,4.924]
[1743157703204,10.43875,1916.0,1915.7,4.924]
[1743157703519,5.21937,1916.0,1915.7,4.924]
[1743157703730,10.43875,1916.0,1915.7,4.924]
[1743157704253,5.21937,1916.0,1915.7,10.14401]
[1743157704452,0.7776,1916.4,1915.9,0.8041]
[1743157704749,8.21876,1916.2,1915.9,6.02334]
[1743157705049,5.21876,1916.2,1915.9,0.8041]
[1743157705356,5.21893,1916.1,1915.9,0.8041]
[1743157705649,7.80237692,1916.1,1915.9,0.8041]
[1743157705816,7.80237692,1916.1,1915.7,16.18699]
[1743157706020,7.80237692,1916.1,1915.7,17.805689]
[1743157707235,7.80237692,1916.1,1915.7,12.881689]
[1743157707406,7.80237692,1916.1,1915.5,1.66055694]
[1743157707407,7.80300692,1915.9,1915.8,4.923]
[1743157708037,5.21956,1915.9,1915.8,4.923]
[1743157709503,8.60801692,1916.0,1915.8,4.923]
[1743157709938,13.82746692,1916.0,1915.8,4.923]
[1743157710353,5.21947,1915.9,1915.8,4.923]
[1743157710907,5.22003,1915.7,1915.6,4.922]
[1743157711108,7.80347692,1915.7,1915.6,4.922]
[1743157711541,5.22044,1915.6,1915.4,6.0]
[1743157711712,10.44091,1915.6,1915.5,4.922]
[1743157711912,14.09574026,1915.6,1915.5,4.922]
[1743157712113,5.22056,1915.5,1915.4,6.0]
[1743157712344,7.80400692,1915.5,1915.4,6.0]
[1743157712554,5.22056,1915.5,1915.4,6.0]
[1743157713849,7.80388692,1915.6,1915.4,6.0]
[1743157714645,8.63610692,1915.7,1915.4,6.0]
[1743157715139,0.38238815,1915.9,1915.4,7.38147485]
[1743157715140,8.60426692,1915.9,1915.4,7.38147485]
[1743157715322,5.21952,1915.9,1915.6,5.22021]
[1743157715522,5.21952,1915.9,1915.7,4.922]
[1743157715718,7.80296692,1915.9,1915.7,4.922]
[1743157715926,5.21952,1915.9,1915.7,4.922]
[1743157716448,10.43924,1915.9,1915.7,4.922]
[1743157716949,7.80296692,1915.9,1915.7,4.922]
[1743157717249,5.21952,1915.9,1915.7,4.922]
[1743157720826,7.80268692,1916.0,1915.7,4.922]
[1743157721229,13.02209692,1916.0,1915.7,4.922]
[1743157721532,5.21963,1915.9,1915.7,4.922]
[1743157721814,7.80267692,1916.0,1915.7,4.922]
[1743157721929,13.02206692,1916.0,1915.7,4.922]
[1743157722290,7.80267692,1916.0,1915.7,4.922]
[1743157722576,13.02204692,1916.0,1915.7,4.922]
[1743157722864,5.21923,1916.0,1915.7,4.922]
[1743157723071,5.21923,1916.0,1915.7,10.14201]
[1743157724851,8.57106692,1916.2,1915.7,11.758653]
[1743157725152,5.21872,1916.2,1915.9,0.7545]
[1743157725324,10.43755,1916.2,1915.9,0.7545]
[1743157725649,5.21823,1916.4,1916.0,5.21912]
[1743157725853,5.98651,1916.6,1916.1,10.89521]
[1743157726072,5.21761,1916.6,1916.2,5.21852]
[1743157726239,5.21734,1916.7,1916.3,5.21837]
[1743157726240,7.80078692,1916.7,1916.3,5.21837]
[1743157726757,7.80078692,1916.7,1916.4,0.8102]
[1743157727128,5.21734,1916.7,1916.4,0.8102]
[1743157727330,7.80023692,1916.9,1916.5,4.922]
[1743157727535,8.58896692,1917.1,1916.6,5.21755]
[1743157727735,8.58896692,1917.1,1916.5,10.13981]
[1743157727736,5.21677,1916.9,1916.5,10.13981]
[1743157727960,5.21712,1916.8,1916.5,4.922]
[1743157728147,7.80029692,1916.9,1916.5,4.922]
[1743157728344,7.80029692,1916.9,1916.5,10.1397]
[1743157728537,13.01723692,1916.9,1916.5,11.756485]
[1743157728853,5.21705,1916.8,1916.5,6.538785]
[1743157729061,7.80029692,1916.9,1916.5,6.538785]
[1743157729291,7.80029692,1916.9,1916.5,11.756535]
[1743157729936,13.01723692,1916.9,1916.5,11.756535]
[1743157730142,13.01619692,1917.1,1916.7,5.2171]
[1743157730656,5.21635,1917.1,1916.7,5.2171]
[1743157730860,5.21635,1917.1,1916.8,5.21693]
[1743157731030,5.21635,1917.1,1916.9,4.921]
[1743157733283,3.7996,1917.3,1916.9,4.921]
[1743157733284,8.21569,1917.3,1917.0,0.7957]
[1743157733439,8.21569,1917.3,1917.0,6.01217]
[1743157733775,13.43156,1917.3,1917.0,0.7957]
[1743157734363,10.43155,1917.3,1917.0,0.7957]
[1743157734877,5.21604,1917.2,1917.0,0.7957]
[1743157738289,13.01495692,1917.3,1917.0,0.7957]
[1743157738488,7.79940692,1917.2,1917.0,0.7957]
[1743157742173,5.21596,1917.2,1917.0,0.7957]
[1743157743096,7.79911692,1917.3,1917.0,0.7957]
[1743157743259,13.01496692,1917.3,1917.0,0.7957]
[1743157744092,5.21567,1917.3,1917.0,6.01212]
[1743157745262,10.43151,1917.3,1917.0,0.7957]
[1743157745465,5.21661,1917.0,1916.6,5.97765]
[1743157745786,7.79997692,1917.0,1916.7,4.919]
[1743157745989,5.21653,1917.0,1916.7,4.919]
[1743157746162,5.21653,1917.0,1916.7,10.13629]
[1743157747879,5.99043,1917.2,1916.8,5.21684]
[1743157748085,5.21603,1917.2,1916.9,5.99089]
[1743157748293,13.79516692,1917.4,1917.0,5.21636]
[1743157748477,13.01443692,1917.4,1917.1,4.919]
[1743157749005,5.21567,1917.3,1917.1,4.919]
[1743157749176,7.79911692,1917.3,1917.1,4.919]
[1743157749677,7.79937692,1917.2,1917.1,4.919]
[1743157751178,5.21593,1917.2,1917.1,4.919]
[1743157752411,7.79911692,1917.3,1917.1,4.919]
[1743157752612,5.21593,1917.2,1917.1,4.919]
[1743157760716,7.79937692,1917.2,1917.1,4.919]
[1743157760885,9.62245861,1917.2,1917.1,4.919]
[1743157761916,10.39745861,1917.2,1917.1,4.919]
[1743157762609,7.81401169,1917.2,1917.1,4.919]
[1743157764100,7.03901169,1917.2,1917.1,4.919]
[1743157764916,5.21593,1917.2,1917.1,4.919]
[1743157769139,7.79937692,1917.2,1917.1,4.919]
[1743157769367,5.21628,1917.1,1917.0,4.918]
[1743157769943,10.43207,1917.2,1917.0,4.918]
[1743157770106,5.21593,1917.2,1917.0,4.918]
[1743157771146,10.43205,1917.2,1917.0,4.918]
[1743157771345,5.21621,1917.1,1917.0,4.918]
[1743157771843,7.79937692,1917.2,1917.0,4.918]
[1743157772044,5.21593,1917.2,1917.0,4.918]
[1743157773316,5.21593,1917.2,1916.8,5.98062]
[1743157773317,10.43204,1917.2,1916.8,5.98062]
[1743157773647,5.21621,1917.1,1917.0,4.917]
[1743157774750,5.21593,1917.2,1917.0,4.917]
[1743157778547,7.79912692,1917.3,1917.0,4.917]
[1743157778548,5.21522,1917.5,1917.1,0.7759]
[1743157778742,5.2155,1917.4,1917.1,0.7759]
[1743157779638,10.43105,1917.4,1917.1,0.7759]
[1743157779841,5.21573,1917.3,1917.1,0.7759]
[1743157783658,5.21542,1917.4,1917.1,0.7759]
[1743157783866,3.7518,1917.6,1917.2,5.9952]
[1743157783867,5.21491,1917.6,1917.2,5.9952]
[1743157784030,5.21491,1917.6,1917.2,6.85306469]
[1743157784361,5.21491,1917.6,1917.3,5.21558]
[1743157784561,5.21491,1917.6,1917.4,4.917]
[1743157784761,2.58344692,1917.7,1917.4,4.917]
[1743157784762,7.79817692,1917.7,1917.4,4.917]
[1743157784962,7.79817692,1917.7,1917.4,10.13236]
[1743157785130,5.21473,1917.7,1917.4,11.66715]
[1743157785331,8.72089592,1917.8,1917.4,11.66698]
[1743157785531,0.112729,1917.8,1917.5,0.7793]
[1743157785728,0.112729,1917.8,1917.5,5.99423]
[1743157786545,7.91057592,1917.8,1917.5,0.7793]
[1743157787144,7.91057592,1917.8,1917.5,5.99441]
[1743157788257,7.91057592,1917.8,1917.5,6.66262549]
[1743157790465,0.112729,1917.8,1917.5,11.87757549]
[1743157790654,0.112729,1917.8,1917.5,6.66246549]
[1743157791374,0.112729,1917.8,1917.6,5.21475]
[1743157791579,0.112729,1917.8,1917.7,5.98367]
[1743157791870,0.112729,1917.8,1917.7,7.103512]
[1743157793368,0.112729,1917.8,1917.7,1.888942]
[1743157793960,0.112729,1917.8,1917.7,7.103512]
[1743157795269,0.112729,1917.8,1917.7,9.68695892]
[1743157795436,0.112729,1917.8,1917.7,1.119842]
[1743157795766,0.112729,1917.8,1917.5,6.67836549]
[1743157796072,0.112729,1917.8,1917.7,4.915]
[1743157798759,0.112729,1917.8,1917.7,10.12957]
[1743157798966,0.112729,1917.8,1917.7,4.915]
[1743157799345,0.112729,1917.8,1917.6,5.21463]
[1743157799546,0.112729,1917.8,1917.7,5.436463]
[1743157800684,0.112729,1917.8,1917.7,10.651033]
[1743157801478,0.112729,1917.8,1917.7,5.436463]
[1743157803050,0.112729,1917.8,1917.7,12.011033]
[1743157803274,0.112729,1917.8,1917.7,11.461033]
[1743157803777,0.112729,1917.8,1917.7,6.246463]
[1743157804154,0.112729,1917.8,1917.7,5.436463]
[1743157804378,0.112729,1917.8,1917.7,4.915]
[1743157807083,0.112729,1917.8,1917.7,4.914]
[1743157810799,5.327029,1917.8,1917.7,4.914]
[1743157810959,0.112729,1917.8,1917.7,4.914]
[1743157811383,5.327029,1917.8,1917.7,4.914]
[1743157813790,5.1888465,1917.8,1917.7,4.914]
[1743157814992,6.73569029,1917.8,1917.7,4.914]
[1743157815171,6.81087379,1917.9,1917.7,4.914]
[1743157816199,12.02508379,1917.9,1917.7,4.914]
[1743157816485,7.57574379,1917.8,1917.7,4.914]
[1743157816687,3.64542117,1917.8,1917.4,27.581]
[1743157816893,6.76196379,1917.5,1917.4,27.581]
[1743157817188,5.21583,1917.3,1917.2,4.914]
[1743157817391,6.76267379,1917.3,1917.2,4.914]
[1743157818392,5.21594,1917.2,1916.9,6.00418]
[1743157818594,6.76278379,1917.2,1917.0,4.914]
[1743157818989,5.21594,1917.2,1917.0,4.914]
[1743157819362,5.21573,1917.3,1917.0,6.005818]
[1743157819590,10.4316,1917.3,1917.0,6.005818]
[1743157819792,5.21573,1917.3,1917.0,6.005818]
[1743157821191,7.79484232,1917.5,1917.0,6.005818]
[1743157821390,8.21518,1917.5,1917.1,5.21604]
[1743157821610,13.43051,1917.5,1917.1,5.21604]
[1743157821798,16.01020232,1917.5,1917.1,5.21604]
[1743157822598,0.7755,1917.6,1917.3,5.21563]
[1743157822766,7.79465232,1917.6,1917.4,4.914]
[1743157822967,2.57969232,1917.6,1917.4,4.914]
[1743157823497,5.21467,1917.7,1917.4,10.12936]
[1743157823689,7.79436232,1917.7,1917.4,10.88636]
[1743157823901,7.79436232,1917.7,1917.4,12.496559]
[1743157824697,2.57969232,1917.7,1917.4,12.496559]
[1743157825308,7.79432232,1917.7,1917.4,7.281199]
[1743157825465,2.57969232,1917.6,1917.4,5.671]
[1743157825662,2.57969232,1917.7,1917.4,10.88626]
[1743157825996,2.57969232,1917.7,1917.5,5.21511]
[1743157826507,2.57969232,1917.7,1917.4,10.88622]
[1743157827017,11.24091,1917.8,1917.4,10.88622]
[1743157827018,2.57969232,1917.5,1917.4,4.914]
[1743157828086,7.79475232,1917.6,1917.4,4.914]
[1743157831616,5.21512,1917.5,1917.4,4.914]
[1743157831827,2.57969232,1917.5,1917.4,4.914]
[1743157833234,7.79475232,1917.6,1917.4,4.914]
[1743157835065,7.79472232,1917.6,1917.4,4.914]
[1743157836137,2.57969232,1917.6,1917.4,4.914]
[1743157838786,5.21687,1916.9,1916.7,27.577]
[1743157838986,2.57969232,1916.8,1916.7,27.577]
[1743157839139,7.79671232,1916.8,1916.7,32.491]
[1743157839487,5.21746,1916.7,1916.4,5.6691]
[1743157839776,8.55945232,1916.7,1916.4,5.6691]
[1743157840790,5.21764,1916.6,1916.4,4.914]
[1743157841077,8.55945232,1916.7,1916.4,4.914]
[1743157841243,3.34199232,1916.7,1916.5,5.21765]
[1743157841639,3.37249232,1916.8,1916.5,5.21765]
[1743157841874,8.58968232,1916.8,1916.4,10.13207]
[1743157842091,8.58968232,1916.8,1916.4,11.667112]
[1743157842267,5.2174,1916.7,1916.4,11.667112]
[1743157843097,13.01459232,1916.7,1916.4,6.449042]
[1743157843267,7.79753232,1916.5,1916.4,4.914]
[1743157844500,7.79750232,1916.6,1916.4,4.914]
[1743157847607,5.21781,1916.6,1916.4,4.914]
[1743157849916,2.57969232,1916.7,1916.4,4.914]
[1743157850204,2.57969232,1917.1,1916.7,5.21719]
[1743157850406,8.54922232,1917.2,1916.8,10.93047]
[1743157850776,8.54922232,1917.2,1916.8,10.93043]
[1743157851105,8.54922232,1917.2,1916.9,5.21673]
[1743157851307,2.57969232,1917.1,1916.8,10.93041]
[1743157851502,2.57969232,1917.1,1916.8,12.545177]
[1743157852912,2.57969232,1917.1,1916.8,17.762027]
[1743157853091,2.57969232,1917.1,1916.9,5.21666]
[1743157853495,2.57969232,1917.2,1916.9,5.21666]
[1743157853886,7.79563232,1917.2,1916.9,5.21666]
[1743157857429,5.21594,1917.2,1916.9,6.9928617]
[1743157857725,0.7785,1917.4,1917.0,5.21645]
[1743157857897,2.57969232,1917.2,1917.0,5.21645]
[1743157858725,2.57969232,1917.2,1917.0,5.21636]
[1743157859116,2.57969232,1917.3,1917.1,5.21621]
[1743157859423,7.79490232,1917.5,1917.2,5.436621]
[1743157859630,7.79490232,1917.5,1917.2,4.915]
[1743157860211,13.01023232,1917.5,1917.2,4.915]
[1743157860407,7.79513232,1917.4,1917.2,4.915]
[1743157860725,2.57969232,1917.3,1917.2,4.915]
[1743157860925,7.79513232,1917.4,1917.2,4.915]
[1743157861323,13.01075232,1917.4,1917.2,4.915]
[1743157861510,2.57969232,1917.3,1917.2,4.915]
[1743157863040,7.79535232,1917.3,1917.2,4.915]
[1743157863508,2.57969232,1917.3,1917.2,4.915]
[1743157863708,2.57969232,1917.3,1917.2,5.4065]
[1743157863907,2.57969232,1917.3,1917.2,4.915]
[1743157864843,7.79513232,1917.4,1917.2,4.915]
[1743157865937,2.57969232,1917.3,1917.2,4.915]
[1743157866921,2.57969232,1917.4,1917.2,4.915]
[1743157867626,3.37879232,1917.6,1917.2,5.6694]
[1743157867809,0.8039,1918.0,1917.7,5.21438]
[1743157868014,2.57969232,1918.0,1917.8,4.914]
[1743157869235,2.62969232,1917.9,1917.8,4.914]
[1743157869421,0.05,1917.9,1917.8,4.914]
[1743157869835,0.05,1917.9,1917.8,10.1283]
[1743157871665,0.05,1917.9,1917.8,4.914]
[1743157873063,0.05,1917.9,1917.8,10.1283]
[1743157874002,0.05,1917.9,1917.8,11.738008]
[1743157875909,0.05,1917.9,1917.8,6.523708]
[1743157876186,2.62969232,1917.9,1917.8,4.914]
[1743157876389,13.85584232,1917.9,1917.8,4.913]
[1743157877208,8.64163232,1917.9,1917.8,4.913]
[1743157877511,8.64163232,1917.9,1917.7,4.913]
[1743157877810,2.57969232,1917.8,1917.7,4.913]
[1743157878910,7.79399232,1917.8,1917.7,4.913]
[1743157879311,2.57969232,1917.8,1917.7,4.913]
[1743157879879,7.79399232,1917.8,1917.7,4.913]
[1743157880074,7.79399232,1917.8,1917.4,33.62989]
[1743157880416,2.57969232,1917.5,1917.4,27.586]
[1743157880579,2.57969232,1917.5,1917.4,32.498]
[1743157881109,2.57969232,1917.7,1917.4,41.019774]
[1743157881293,2.57969232,1917.7,1917.4,46.234994]
[1743157881500,7.79403232,1917.8,1917.5,5.21506]
[1743157882810,0.8478,1917.9,1917.6,5.21471]
[1743157882990,0.05,1917.9,1917.6,0.7727]
[1743157883191,0.05,1917.9,1917.7,5.21434]
[1743157883400,0.05,1917.9,1917.8,5.433434]
[1743157883976,0.05,1917.9,1917.8,10.647734]
[1743157884614,0.05,1917.9,1917.8,5.433434]
[1743157886323,0.05,1917.9,1917.8,10.69987509]
[1743157886626,0.05,1917.9,1917.8,10.647734]
[1743157887897,0.05,1917.9,1917.8,5.433434]
[1743157889121,0.05,1917.9,1917.8,10.647734]
[1743157891731,0.05,1917.9,1917.8,5.433434]
[1743157893006,0.05,1917.9,1917.8,10.647734]
[1743157893612,0.05,1917.9,1917.8,5.433434]
[1743157894016,0.05,1917.9,1917.8,10.647734]
[1743157894222,0.05,1917.9,1917.8,5.433434]
[1743157895010,0.05,1917.9,1917.8,10.647734]
[1743157898816,0.05,1917.9,1917.8,14.05432632]
[1743157899210,0.05,1917.9,1917.8,11.474634]
[1743157901032,0.05,1917.9,1917.8,14.05432632]
[1743157903273,0.05,1917.9,1917.8,11.474634]
[1743157903775,0.05,1917.9,1917.8,12.49548343]
[1743157904347,0.05,1917.9,1917.8,38.220734]
[1743157905060,0.05,1917.9,1917.8,38.219734]
[1743157905571,0.05,1917.9,1917.8,42.09942632]
[1743157908677,0.05,1917.9,1917.8,43.14504892]
[1743157921915,0.05,1917.9,1917.8,40.5653566]
[1743157922110,0.05,1917.9,1917.8,39.8143566]
[1743157922514,0.05,1917.9,1917.8,43.15854892]
[1743157922879,0.05,1917.9,1917.8,46.15854892]
[1743157928797,0.05,1917.9,1917.8,34.3553566]
[1743157929124,0.05,1917.9,1917.8,39.2643566]
[1743157929491,0.05,1917.9,1917.8,34.9053566]
[1743157929697,0.05,1917.9,1917.8,34.3553566]
[1743157929902,0.05,1917.9,1917.8,39.2643566]
[1743157930099,0.05,1917.9,1917.8,33.004434]
[1743157930314,0.8293,1917.9,1917.8,32.483]
[1743157930824,6.04333,1917.9,1917.8,32.483]
[1743157931307,6.04333,1917.9,1917.8,27.574]
[1743157931514,8.62302232,1917.9,1917.8,27.574]
[1743157931713,10.00671455,1917.9,1917.8,27.574]
[1743157932418,8.62302232,1917.9,1917.8,27.574]
[1743157932622,0.8293,1917.9,1917.8,27.574]
[1743157934841,0.05,1917.9,1917.8,32.7883]
[1743157935129,0.05,1917.9,1917.8,35.91799232]
[1743157935487,0.05,1917.9,1917.8,36.71799232]
[1743157935704,0.05,1917.9,1917.8,40.91123555]
[1743157936731,0.05,1917.9,1917.8,37.53154323]
[1743157938341,0.05,1917.9,1917.8,40.11123555]
[1743157939045,0.05,1917.9,1917.8,41.14632344]
[1743157939744,0.05,1917.9,1917.8,38.56663112]
[1743157939963,0.05,1917.9,1917.8,41.14632344]
[1743157941760,0.05,1917.9,1917.8,38.56663112]
[1743157942757,0.05,1917.9,1917.8,38.01663112]
[1743157945524,0.05,1917.9,1917.8,38.56663112]
[1743157949781,0.05,1917.9,1917.8,41.96702344]
[1743157950081,0.8217,1918.4,1918.3,5.21294]
[1743157950288,0.8217,1918.4,1918.3,11.163545]
[1743157950777,0.8217,1918.4,1918.3,5.950605]
[1743157950985,7.79236232,1918.4,1918.3,4.908]
[1743157951180,8.55466232,1918.4,1918.3,4.908]
[1743157952092,3.34199232,1918.4,1918.3,4.908]
[1743157954477,8.55466232,1918.4,1918.3,4.908]
[1743157956094,3.34199232,1918.4,1918.3,4.908]
[1743157956698,8.55466232,1918.4,1918.3,4.908]
[1743157958106,3.34199232,1918.4,1918.3,4.908]
[1743157960216,8.55466232,1918.4,1918.3,4.908]
[1743157960521,9.93137755,1918.4,1918.3,4.908]
[1743157964306,0.8313,1918.1,1917.8,32.78829]
[1743157964484,3.41099232,1918.1,1917.9,4.908]
[1743157964923,3.41099232,1918.1,1917.9,10.12202]
[1743157965509,0.8313,1918.1,1917.9,10.12202]
[1743157966004,3.41099232,1918.1,1918.0,4.908]
[1743157967926,8.62448232,1918.1,1918.0,4.908]
[1743157968431,0.7616,1918.0,1917.8,27.574]
[1743157968722,0.7616,1918.0,1917.9,4.908]
[1743157968723,5.97536,1918.0,1917.9,4.908]
[1743157968923,8.55505232,1918.0,1917.9,4.908]
[1743157969615,3.34129232,1918.0,1917.9,4.908]
[1743157969811,8.55505232,1918.0,1917.9,4.908]
[1743157970009,9.93176755,1918.0,1917.9,4.908]
[1743157971899,4.71800755,1918.0,1917.9,4.908]
[1743157972888,3.34129232,1918.0,1917.9,4.908]
[1743157974628,8.55505232,1918.0,1917.9,4.908]
[1743157983028,8.56881232,1918.1,1917.9,4.908]
[1743157983231,13.00692232,1918.1,1917.9,4.908]
[1743157983433,5.2147,1917.7,1917.5,1.02707134]
[1743157983620,8.57024232,1917.6,1917.4,27.571]
[1743157983835,8.57024232,1917.6,1917.5,4.908]
[1743157984037,8.57024232,1917.6,1917.1,6.25545341]
[1743157984038,10.37433464,1917.6,1917.1,4.908]
[1743157984199,7.79562232,1917.2,1917.1,4.908]
[1743157984405,8.56582232,1917.2,1917.1,4.908]
[1743157984603,9.94398755,1917.2,1917.1,4.908]
[1743157984905,9.94398755,1917.2,1916.7,32.79113]
[1743157984906,5.21657,1917.0,1916.9,4.908]
[1743157985101,4.72805755,1917.2,1916.9,4.908]
[1743157985102,5.98617,1917.2,1916.9,4.908]
[1743157985309,8.56586232,1917.2,1916.9,4.908]
[1743157985539,8.56586232,1917.2,1916.9,10.12472]
[1743157985743,7.79538232,1917.3,1916.9,17.631658]
[1743157985947,7.79538232,1917.3,1916.9,12.414938]
[1743157986103,7.79538232,1917.3,1916.9,17.631538]
[1743157986307,7.79538232,1917.3,1916.9,12.414938]
[1743157986540,7.79538232,1917.3,1916.9,17.631558]
[1743157986735,13.01123232,1917.3,1916.9,12.414938]
[1743157986922,2.57969232,1917.2,1916.9,12.414938]
[1743157987129,2.57969232,1917.2,1917.0,5.21645]
[1743157987334,2.57969232,1917.2,1916.9,12.414938]
[1743157988303,2.57969232,1917.1,1916.9,4.908]
[1743157988805,2.57969232,1917.0,1916.7,34.57464401]
[1743157989136,7.79620232,1917.0,1916.8,4.909]
[1743157989509,2.57969232,1917.0,1916.8,4.909]
[1743157990155,3.34989232,1917.1,1916.8,10.12599]
[1743157990640,13.78252232,1917.1,1916.8,4.909]
[1743157990845,8.56612232,1917.1,1916.8,4.909]
[1743157991604,7.79566232,1917.2,1916.8,14.648455]
[1743157992146,7.79566232,1917.2,1916.8,19.865345]
[1743157992309,7.79566232,1917.2,1916.8,14.648415]
[1743157992640,5.21623,1917.1,1916.8,9.431525]
[1743157992854,7.79592232,1917.1,1916.8,9.431525]
[1743157993356,3.40739232,1917.3,1916.9,0.9431525]
[1743157993511,8.61415232,1917.5,1917.0,5.26843246]
[1743157993710,8.61415232,1917.5,1917.1,5.99372]
[1743157993711,5.21516,1917.5,1917.1,5.99372]
[1743157993935,7.79456232,1917.6,1917.2,10.1249]
[1743157994157,9.65777104,1917.7,1917.3,5.21556]
[1743157994310,9.65777104,1917.7,1917.2,11.736662]
[1743157994311,2.57969232,1917.6,1917.2,11.736662]
[1743157994512,2.57969232,1917.5,1917.2,11.736662]
[1743157994947,2.57969232,1917.5,1917.2,16.952482]
[1743157995747,2.57969232,1917.5,1917.3,5.21553]
[1743157995950,2.57969232,1917.6,1917.3,6.9107492]
[1743157996339,2.57969232,1917.6,1917.4,5.21539]
[1743157996543,2.57969232,1917.7,1917.4,10.43065]
[1743157996743,2.57969232,1917.8,1917.5,5.21505]
[1743157996940,2.57969232,1917.8,1917.6,4.909]
[1743157997160,13.80388232,1917.9,1917.6,4.909]
[1743157997370,2.57969232,1917.8,1917.6,4.909]
[1743157997864,8.58964232,1917.9,1917.6,4.909]
[1743157998159,2.57969232,1917.9,1917.6,10.12381]
[1743157998336,2.57969232,1917.9,1917.6,11.7695561]
[1743157999269,2.57969232,1917.9,1917.6,16.9842661]